bitfinex/quotes_ETHUSD_20250523
["timestamp","ask_amount","ask_price","bid_price","bid_amount"]
[1748024445149,0.05,2559.9,2559.8,8.37227402]
[1748024445545,0.05,2559.9,2559.8,43.57982921]
[1748024445939,0.05,2559.9,2559.8,40.47717402]
[1748024446144,0.05,2559.9,2559.8,9.17617402]
[1748024446344,3.95640259,2559.9,2559.8,9.17617402]
[1748024446596,0.05,2559.9,2559.8,28.76917402]
[1748024446803,4.74210259,2559.9,2559.8,0.37227402]
[1748024446999,5.64592486,2559.9,2559.8,0.37227402]
[1748024447299,5.60694053,2559.9,2559.8,0.37227402]
[1748024447650,5.64592486,2559.9,2559.8,0.37227402]
[1748024447850,5.60694053,2559.9,2559.8,0.37227402]
[1748024448456,5.60694053,2559.9,2559.6,19.593]
[1748024448457,3.90670781,2559.7,2559.6,19.593]
[1748024449492,0.05,2559.9,2559.6,19.593]
[1748024449651,0.05,2559.9,2558.7,17.693]
[1748024449854,3.90711228,2559.5,2558.8,11.90794996]
[1748024450051,0.05,2559.9,2559.0,8.0]
[1748024450556,3.90715315,2559.5,2559.0,8.0]
[1748024450758,3.9069555,2559.6,2559.0,8.0]
[1748024450988,3.90693607,2559.6,2559.1,3.9075389]
[1748024451291,3.90709381,2559.5,2559.0,11.90768736]
[1748024451472,3.90726703,2559.4,2559.2,0.37287121]
[1748024451683,3.90708479,2559.5,2559.2,0.37287121]
[1748024451904,3.90675875,2559.7,2559.2,0.37287121]
[1748024452062,0.05,2559.9,2559.3,0.8044]
[1748024452762,0.05,2559.9,2559.4,0.37287121]
[1748024452998,3.95650728,2559.9,2559.6,8.0]
[1748024453211,3.90662793,2559.8,2559.7,16.862]
[1748024453582,0.05,2559.9,2559.7,16.862]
[1748024454610,3.90655519,2559.8,2559.7,16.862]
[1748024454982,0.05,2559.9,2559.7,16.862]
[1748024455183,3.90655519,2559.8,2559.7,16.862]
[1748024455400,0.05,2559.9,2559.7,16.862]
[1748024455875,0.05,2559.9,2559.8,8.0]
[1748024456211,0.05,2559.9,2559.8,12.68655519]
[1748024456407,0.05,2559.9,2559.8,8.78]
[1748024456606,0.05,2559.9,2559.8,20.489]
[1748024456811,0.05,2559.9,2559.8,28.373]
[1748024456812,3.95640259,2559.9,2559.8,28.373]
[1748024456972,0.05,2559.9,2559.8,28.74560803]
[1748024457173,3.95640259,2559.9,2559.8,9.15260803]
[1748024457373,0.05,2559.9,2559.8,28.74560803]
[1748024457585,0.05,2559.9,2559.8,32.65216322]
[1748024457996,0.05,2559.9,2559.8,33.20216322]
[1748024458197,0.05,2559.9,2559.8,32.65216322]
[1748024458385,0.05,2559.9,2559.8,28.74560803]
[1748024458722,0.05,2559.9,2559.8,9.15260803]
[1748024458890,0.05,2559.9,2559.8,44.35816322]
[1748024459697,0.05,2559.9,2559.8,13.05916322]
[1748024459910,0.05,2559.9,2559.8,44.90816322]
[1748024460986,3.95640259,2559.9,2559.8,19.96160803]
[1748024461196,4.35204285,2559.9,2559.8,19.91160803]
[1748024461398,3.95640259,2559.9,2559.8,19.91160803]
[1748024461712,0.05,2559.9,2559.8,19.91160803]
[1748024461887,0.05,2559.9,2559.8,19.589]
[1748024462086,0.05,2559.9,2559.7,16.862]
[1748024462087,3.95640259,2559.9,2559.7,16.862]
[1748024462287,0.05,2559.9,2559.8,19.589]
[1748024462512,0.05,2559.9,2559.8,27.589]
[1748024463123,0.05,2559.9,2559.8,32.30365519]
[1748024463803,0.05,2559.9,2559.8,28.3971]
[1748024463983,0.05,2559.9,2559.8,32.30365519]
[1748024464406,0.05,2559.9,2559.8,28.3971]
[1748024464729,3.95640259,2559.9,2559.8,8.8081]
[1748024464899,3.95640259,2559.9,2559.8,19.589]
[1748024465100,4.74267882,2559.9,2559.8,19.589]
[1748024465307,3.95640259,2559.9,2559.8,19.589]
[1748024466793,0.05,2559.9,2559.8,19.589]
[1748024466993,3.90655519,2559.8,2559.7,16.862]
[1748024467536,3.90655519,2559.8,2559.7,36.451]
[1748024468391,3.9564693,2559.9,2559.7,36.451]
[1748024468596,0.05,2559.9,2559.7,36.451]
[1748024468795,3.95640259,2559.9,2559.8,8.0]
[1748024468994,3.95640259,2559.9,2559.8,27.589]
[1748024469293,0.05,2559.9,2559.8,28.355]
[1748024469493,3.95640259,2559.9,2559.7,16.862]
[1748024469802,3.90655519,2559.8,2559.7,16.862]
[1748024470100,3.90655519,2559.8,2559.7,36.451]
[1748024471294,3.95649272,2559.9,2559.7,36.451]
[1748024471550,0.05,2559.9,2559.7,36.451]
[1748024471897,3.9565419,2559.9,2559.7,36.451]
[1748024472098,3.90655519,2559.8,2559.7,44.451]
[1748024472315,3.95640432,2559.9,2559.7,44.451]
[1748024472610,0.05,2559.9,2559.7,44.451]
[1748024472815,3.90655519,2559.8,2559.7,44.451]
[1748024473238,3.90655519,2559.8,2559.7,24.862]
[1748024473398,4.69285372,2559.8,2559.7,16.862]
[1748024473596,4.69285372,2559.8,2559.7,36.451]
[1748024473941,3.90655519,2559.8,2559.7,36.451]
[1748024475224,0.05,2559.9,2559.7,48.158]
[1748024475558,0.05,2559.9,2559.8,8.0]
[1748024475835,0.05,2559.9,2559.8,8.7979]
[1748024476203,0.05,2559.9,2559.8,12.70445519]
[1748024476395,0.05,2559.9,2559.8,8.7979]
[1748024476828,0.05,2559.9,2559.8,12.70445519]
[1748024477025,0.05,2559.9,2559.8,13.25445519]
[1748024478427,0.05,2559.9,2559.8,14.09131753]
[1748024479456,0.05,2560.9,2560.7,8.7949]
[1748024479631,0.05,2560.9,2560.8,55.903]
[1748024479835,0.05,2560.9,2560.8,59.80802967]
[1748024480245,0.05,2560.9,2560.8,55.903]
[1748024480617,0.05,2560.9,2560.8,44.197]
[1748024480822,0.05,2560.9,2560.8,55.903]
[1748024481425,3.95487719,2560.9,2560.8,24.857]
[1748024481658,0.05,2560.9,2560.8,44.197]
[1748024481961,0.05,2560.9,2560.8,24.857]
[1748024482156,0.05,2560.9,2560.8,55.9]
[1748024483139,3.95487719,2560.9,2560.8,55.9]
[1748024483330,0.05,2560.9,2560.8,55.9]
[1748024483528,3.95487719,2560.9,2560.8,36.194]
[1748024483834,4.74084427,2560.9,2560.8,36.194]
[1748024485575,5.49554427,2560.9,2560.8,16.857]
[1748024485726,5.49554427,2560.9,2560.8,36.193]
[1748024486059,5.49554427,2560.9,2560.8,16.857]
[1748024486261,5.49554427,2560.9,2560.8,36.193]
[1748024486561,5.99554427,2560.9,2560.8,36.193]
[1748024488762,5.99554427,2560.9,2560.8,36.194]
[1748024489461,5.89554427,2560.9,2560.8,36.194]
[1748024489764,5.89554427,2560.9,2560.8,16.857]
[1748024489933,4.65773468,2560.6,2560.5,19.337]
[1748024490134,3.90625,2560.0,2559.9,16.855]
[1748024490349,4.70335,2560.0,2559.9,36.192]
[1748024490865,5.56429748,2560.0,2559.9,36.192]
[1748024491027,3.90792918,2558.9,2558.8,17.32280156]
[1748024491363,3.90792918,2558.9,2558.8,36.66180156]
[1748024491671,3.90899851,2558.2,2557.9,17.6588]
[1748024491851,3.85899851,2558.2,2558.1,19.389]
[1748024492053,3.85899851,2558.2,2558.1,0.05]
[1748024492054,5.59007945,2558.2,2558.1,0.05]
[1748024492968,4.69109851,2558.2,2558.1,0.05]
[1748024493260,3.85899851,2558.2,2558.1,0.05]
[1748024493773,5.09722343,2559.4,2558.1,11.756]
[1748024493923,0.8092,2559.3,2558.2,27.38508523]
[1748024494126,0.8092,2559.3,2558.3,8.0]
[1748024494333,0.8092,2559.3,2558.4,0.03907692]
[1748024494649,3.90769635,2559.1,2558.6,8.0]
[1748024494861,3.90721862,2559.4,2558.8,8.0]
[1748024495045,3.90719725,2559.4,2558.7,3.90823465]
[1748024495403,3.90719725,2559.4,2558.6,8.7778]
[1748024495404,3.90723962,2559.4,2558.8,39.056]
[1748024495574,3.90723962,2559.4,2558.8,42.96399451]
[1748024495744,0.45811537,2559.7,2558.8,39.056]
[1748024496076,3.90640259,2559.9,2559.3,3.90716649]
[1748024496227,3.90695573,2559.6,2559.4,19.346]
[1748024496424,3.90701308,2559.5,2559.4,19.346]
[1748024497039,4.23124771,2559.5,2559.4,19.346]
[1748024499489,3.90660151,2559.8,2559.4,19.346]
[1748024499690,0.819,2560.4,2559.4,19.346]
[1748024499852,3.90654848,2559.9,2559.4,19.346]
[1748024500049,0.32423463,2560.3,2559.4,20.1246]
[1748024500382,0.5,2560.2,2560.1,3.90609741]
[1748024500583,0.05,2560.9,2560.4,3.90556333]
[1748024500778,0.05,2560.9,2560.5,16.90204806]
[1748024500988,0.05,2560.9,2560.5,16.863]
[1748024501151,0.05,2560.9,2560.6,3.90520675]
[1748024501490,3.95492003,2560.9,2560.7,31.056]
[1748024501787,0.05,2560.9,2560.7,19.346]
[1748024501974,0.05,2560.9,2560.7,31.056]
[1748024502398,0.05,2560.9,2560.8,11.90502967]
[1748024502597,0.05,2560.9,2560.8,8.0]
[1748024502753,0.05,2560.9,2560.5,16.863]
[1748024502957,3.90522208,2560.7,2560.6,19.342]
[1748024503157,0.05,2560.9,2560.6,19.342]
[1748024503388,0.05,2560.9,2560.7,8.0]
[1748024503597,0.05,2560.9,2560.8,3.90502967]
[1748024503818,0.05,2560.9,2560.7,11.90511116]
[1748024504096,0.05,2560.9,2560.7,8.0]
[1748024504280,0.05,2560.9,2560.7,11.90510404]
[1748024504670,0.05,2560.9,2560.7,8.0]
[1748024504969,0.05,2560.9,2560.8,38.619]
[1748024505591,0.05,2560.9,2560.8,42.52402967]
[1748024506264,0.05,2560.9,2560.8,43.85332967]
[1748024507490,0.05,2560.9,2560.8,27.6903]
[1748024507658,0.05,2560.9,2560.8,43.30132967]
[1748024508096,0.05,2560.9,2560.8,39.3963]
[1748024509296,0.05,2560.9,2560.5,16.863]
[1748024509483,3.90518217,2560.7,2560.5,0.32602328]
[1748024509684,5.49655586,2560.6,2560.5,0.32602328]
[1748024510760,3.90563974,2560.4,2560.3,18.905]
[1748024511493,3.90641703,2559.9,2559.8,8.0]
[1748024511694,3.90641703,2559.9,2559.8,38.609]
[1748024512892,3.90641703,2559.9,2559.8,26.907]
[1748024513102,3.90641703,2559.9,2559.8,8.0]
[1748024513274,3.90641703,2559.9,2559.8,26.907]
[1748024513696,3.90635439,2560.0,2559.8,26.907]
[1748024513887,3.90640259,2559.9,2559.8,26.907]
[1748024515173,3.90608675,2560.2,2559.8,26.907]
[1748024515373,3.90627527,2560.0,2559.8,26.907]
[1748024515578,3.90640259,2559.9,2559.8,26.907]
[1748024516400,3.90631718,2560.0,2559.8,26.907]
[1748024516909,3.90640259,2559.9,2559.8,26.907]
[1748024517109,3.90640259,2559.9,2559.8,8.0]
[1748024517307,3.90640259,2559.9,2559.8,38.614]
[1748024517713,3.90623536,2560.1,2559.8,38.614]
[1748024517870,3.90539169,2560.6,2559.8,38.614]
[1748024518082,3.90623411,2560.1,2559.8,38.614]
[1748024518413,3.90616812,2560.1,2559.8,38.614]
[1748024518580,3.90626118,2560.0,2559.8,38.614]
[1748024518782,3.90613326,2560.1,2559.8,38.614]
[1748024518982,3.90640259,2559.9,2559.8,38.614]
[1748024520023,3.90630609,2560.0,2559.8,38.614]
[1748024520319,3.90596607,2560.2,2559.8,38.614]
[1748024520738,3.90504055,2560.8,2559.8,38.614]
[1748024520902,3.90542934,2560.6,2560.2,8.8159]
[1748024521098,3.90550779,2560.5,2560.2,0.8159]
[1748024521302,0.05,2560.9,2559.7,16.854]
[1748024521522,3.90655519,2559.8,2559.7,16.854]
[1748024521714,3.90643891,2559.9,2559.7,35.762]
[1748024521909,3.90655519,2559.8,2559.7,35.762]
[1748024523299,0.7588,2560.3,2559.7,35.762]
[1748024523499,3.90654697,2559.9,2559.7,35.762]
[1748024523738,3.9064816,2559.9,2559.7,35.762]
[1748024523910,3.90655519,2559.8,2559.7,43.762]
[1748024524116,3.90655519,2559.8,2559.7,16.854]
[1748024524442,4.68785887,2559.8,2559.7,35.763]
[1748024524797,4.71565519,2559.8,2559.7,35.763]
[1748024528011,4.66538191,2558.8,2558.7,18.911]
[1748024528970,5.52271542,2558.8,2558.7,18.911]
[1748024529612,6.02271542,2558.8,2558.7,18.911]
[1748024530339,3.90899851,2558.2,2558.1,0.05]
[1748024530548,4.70528284,2558.2,2558.1,0.05]
[1748024530864,5.95756723,2558.2,2558.1,0.05]
[1748024531209,5.9185829,2558.2,2558.1,0.05]
[1748024532011,4.66629851,2558.2,2558.1,0.05]
[1748024534680,5.16629851,2558.2,2558.1,0.05]
[1748024534984,16.87929851,2558.2,2558.1,0.05]
[1748024535484,4.40899851,2558.2,2558.1,0.05]
[1748024535654,3.90899851,2558.2,2558.1,0.05]
[1748024535848,4.72976951,2558.2,2558.1,18.456]
[1748024536043,5.51718518,2558.2,2558.1,18.456]
[1748024537253,4.73539851,2558.2,2558.1,18.456]
[1748024537455,3.90899851,2558.2,2558.1,18.456]
[1748024537890,4.71239851,2558.2,2558.1,0.05]
[1748024538393,5.30138284,2558.2,2558.1,0.05]
[1748024538550,7.79929345,2558.2,2558.1,0.05]
[1748024538948,7.24929345,2558.2,2558.1,0.05]
[1748024539153,4.71239851,2558.2,2558.1,0.05]
[1748024539657,5.21239851,2558.2,2558.1,0.05]
[1748024541207,4.40899851,2558.2,2558.1,0.05]
[1748024541362,3.90899851,2558.2,2558.1,18.457]
[1748024542655,3.90899851,2558.2,2558.1,18.459]
[1748024543111,4.71021271,2558.6,2558.1,18.459]
[1748024543112,3.90853813,2558.6,2558.1,19.2522]
[1748024543292,3.90883609,2558.4,2558.2,0.03908298]
[1748024543494,3.90883609,2558.4,2558.1,19.2522]
[1748024543885,3.90888361,2558.3,2558.1,19.2522]
[1748024544058,3.90899851,2558.2,2558.1,19.2522]
[1748024544254,3.90762377,2559.1,2558.2,0.7932]
[1748024544467,3.90884571,2558.3,2558.2,0.7932]
[1748024544707,3.90899851,2558.2,2558.1,0.05]
[1748024544871,3.90810989,2558.8,2558.1,30.173]
[1748024545076,3.90899851,2558.2,2558.1,30.173]
[1748024545273,3.90899851,2558.2,2558.1,0.05]
[1748024545496,3.90899851,2558.2,2558.1,30.173]
[1748024546601,3.90899851,2558.2,2558.1,38.173]
[1748024546913,3.90899851,2558.2,2558.1,30.173]
[1748024547797,3.90836437,2558.7,2558.1,30.173]
[1748024548130,0.8136,2559.5,2558.3,0.8019]
[1748024548306,3.90869293,2558.4,2558.3,0.8019]
[1748024548875,3.90860215,2558.5,2558.3,0.8019]
[1748024549405,3.90869293,2558.4,2558.3,0.8019]
[1748024549574,3.90861396,2558.5,2558.3,0.8019]
[1748024550399,3.90846904,2558.6,2558.3,0.8019]
[1748024550570,3.90825343,2558.7,2558.3,0.8019]
[1748024550788,0.8151,2559.8,2558.3,0.8019]
[1748024551111,3.90702832,2559.5,2559.0,0.7839]
[1748024551412,3.90710919,2559.5,2559.2,8.0]
[1748024551703,3.90709377,2559.5,2559.2,8.0]
[1748024551926,3.90679507,2559.7,2559.2,8.0]
[1748024552104,3.90716574,2559.4,2559.3,0.793]
[1748024552505,3.90708635,2559.5,2559.3,0.793]
[1748024552827,3.90716574,2559.4,2559.3,0.793]
[1748024553611,4.70025803,2560.5,2559.3,0.793]
[1748024553801,3.90679389,2559.7,2559.3,0.793]
[1748024554000,3.90679389,2559.7,2559.4,8.0]
[1748024554211,3.90679389,2559.7,2559.3,0.793]
[1748024554546,3.90716574,2559.4,2559.3,0.793]
[1748024554705,3.90716574,2559.4,2559.3,19.196]
[1748024554893,3.9069613,2559.6,2559.4,8.0]
[1748024555092,3.90664572,2559.8,2559.4,8.0]
[1748024555314,3.90609741,2560.1,2559.4,8.0]
[1748024555524,3.90609741,2560.1,2558.7,4.45811483]
[1748024555525,3.90789511,2559.0,2558.9,0.7687]
[1748024555825,3.90777647,2559.0,2558.9,18.403]
[1748024556196,3.90760814,2559.2,2558.5,0.7687]
[1748024556407,3.90833956,2558.7,2558.6,30.116]
[1748024556794,3.90751936,2559.2,2558.6,30.116]
[1748024556999,0.7629,2559.9,2558.7,8.0]
[1748024557218,3.90772733,2559.1,2558.7,8.0]
[1748024557509,3.90785642,2559.0,2558.7,8.0]
[1748024558206,3.90716574,2559.4,2558.7,8.0]
[1748024558410,3.90786007,2559.0,2558.6,30.116]
[1748024558634,3.90796446,2558.9,2558.6,30.116]
[1748024558838,3.90831146,2558.7,2558.5,0.7687]
[1748024558994,3.90808191,2558.8,2558.7,18.403]
[1748024559196,3.90854016,2558.5,2558.4,16.867]
[1748024559439,3.90899851,2558.2,2558.1,0.05]
[1748024559649,3.94798284,2558.2,2558.1,0.05]
[1748024559801,3.90899851,2558.2,2558.1,0.05]
[1748024559997,11.90899851,2558.2,2558.1,0.05]
[1748024560315,13.96194223,2558.2,2558.1,0.05]
[1748024560640,14.75854223,2558.2,2558.1,0.05]
[1748024562313,4.68970982,2557.8,2557.7,18.403]
[1748024562519,12.68970982,2557.8,2557.7,18.403]
[1748024562749,14.34962837,2557.8,2557.7,18.403]
[1748024563035,3.90991554,2557.6,2557.5,0.01]
[1748024563240,3.90991554,2557.6,2557.5,18.415]
[1748024564043,11.90991554,2557.6,2557.5,0.01]
[1748024564244,16.30104807,2557.6,2557.5,0.01]
[1748024564450,4.73472713,2557.2,2557.1,18.455]
[1748024564667,12.73472713,2557.2,2557.1,18.455]
[1748024565213,13.28472713,2557.2,2557.1,18.455]
[1748024565507,12.73472713,2557.2,2557.1,18.455]
[1748024565747,14.39923923,2557.2,2557.1,0.05]
[1748024566225,14.39923923,2557.2,2556.7,18.314]
[1748024566226,4.68593892,2556.8,2556.7,18.314]
[1748024566573,3.91205695,2556.2,2556.1,0.05]
[1748024566728,4.69443773,2556.2,2556.1,0.05]
[1748024567137,3.91205695,2556.2,2556.1,0.05]
[1748024569660,3.95104128,2556.2,2556.1,0.05]
[1748024569964,13.26445695,2556.2,2556.1,0.05]
[1748024570958,12.71445695,2556.2,2556.1,0.05]
[1748024571262,13.26445695,2556.2,2556.1,0.05]
[1748024571469,3.91282231,2555.7,2555.6,0.005]
[1748024575240,4.76750664,2555.7,2555.6,0.005]
[1748024575478,4.72852231,2555.7,2555.6,0.005]
[1748024576880,3.91282231,2555.7,2555.6,0.005]
[1748024577371,3.91282231,2555.7,2555.6,18.329]
[1748024577857,3.91282231,2555.7,2555.6,19.122]
[1748024578434,3.9127433,2555.8,2555.7,8.0]
[1748024578656,3.91260156,2555.9,2555.7,8.0]
[1748024578868,3.91266922,2555.8,2555.7,8.0]
[1748024581482,3.91266922,2555.8,2555.7,19.71790033]
[1748024583489,3.912442,2556.0,2555.7,19.71790033]
[1748024583849,3.91252161,2555.9,2555.7,19.71790033]
[1748024584186,3.91106959,2556.9,2556.1,0.7718]
[1748024584187,3.91171174,2556.5,2556.1,0.7718]
[1748024584492,3.91176402,2556.4,2556.3,8.0]
[1748024584681,3.91068006,2557.1,2556.3,8.0]
[1748024584882,3.91171699,2556.5,2556.3,8.0]
[1748024585083,3.91037422,2557.3,2556.4,0.7575]
[1748024585298,3.91144488,2556.6,2556.5,24.885]
[1748024586415,3.91144488,2556.6,2556.5,16.885]
[1748024586759,3.91251613,2555.9,2555.6,16.89]
[1748024587003,3.91269867,2555.8,2555.7,18.326]
[1748024587976,5.0864594,2555.8,2555.7,18.326]
[1748024589286,3.91269867,2555.8,2555.7,18.326]
[1748024589600,3.91266922,2555.8,2555.7,18.326]
[1748024592593,29.06660723,2558.3,2555.7,18.326]
[1748024592594,0.8172,2556.5,2555.7,18.326]
[1748024592924,3.91266922,2555.8,2555.7,18.326]
[1748024593443,4.69518891,2555.8,2555.7,18.326]
[1748024594242,4.74192231,2555.7,2555.6,16.89]
[1748024594442,4.78090664,2555.7,2555.6,16.89]
[1748024594646,4.74192231,2555.7,2555.6,16.89]
[1748024595952,16.46892231,2555.7,2555.6,0.005]
[1748024596116,18.9765862,2555.7,2555.6,0.005]
[1748024597518,7.2495862,2555.7,2555.6,0.005]
[1748024597850,19.01657053,2555.7,2555.6,0.005]
[1748024598159,19.01657053,2555.7,2553.4,17.6757]
[1748024598160,3.91512019,2554.2,2553.4,17.6757]
[1748024598466,3.91512019,2554.2,2554.1,18.8587]
[1748024598608,3.91474009,2554.5,2554.1,18.8587]
[1748024598813,3.91506011,2554.3,2554.1,18.8587]
[1748024599011,3.91512019,2554.2,2554.1,18.8587]
[1748024599445,3.91324264,2555.5,2554.2,4.67454752]
[1748024599651,1.23248418,2555.7,2554.3,8.7595]
[1748024599856,0.45898418,2555.7,2554.5,8.7727]
[1748024600014,3.91398543,2555.0,2554.7,0.7727]
[1748024600550,3.91406042,2554.9,2554.7,0.7727]
[1748024600755,3.91388952,2555.1,2554.7,0.7727]
[1748024601053,3.91308559,2555.6,2554.8,0.8025]
[1748024601259,3.91211894,2556.2,2555.4,0.8025]
[1748024601414,0.7559,2556.7,2555.9,3.91237043]
[1748024601615,3.91168391,2556.5,2556.1,0.8211]
[1748024601862,0.61082049,2556.8,2556.2,11.729]
[1748024601863,3.91175865,2556.4,2556.2,11.729]
[1748024602162,3.91188924,2556.4,2556.2,11.729]
[1748024602450,3.91190392,2556.3,2556.2,11.729]
[1748024603167,0.05,2556.9,2556.2,11.729]
[1748024603367,0.05,2556.9,2556.4,0.7625]
[1748024603661,0.05,2556.9,2556.5,34.913]
[1748024603845,0.05,2556.9,2556.8,8.8065]
[1748024604014,0.05,2556.9,2556.8,23.64013892]
[1748024604219,0.05,2556.9,2556.8,24.99663892]
[1748024604719,1.99874648,2557.9,2557.4,4.54033641]
[1748024604944,5.90822045,2557.9,2557.5,46.634]
[1748024605159,5.90822045,2557.9,2557.6,8.0]
[1748024605366,1.99874648,2557.9,2557.6,8.0]
[1748024605673,1.99874648,2557.9,2557.7,0.6302]
[1748024605823,1.99874648,2557.9,2557.8,8.6302]
[1748024606019,1.99874648,2557.9,2557.8,13.08980982]
[1748024606344,0.05,2557.9,2557.8,13.27550982]
[1748024606520,0.05,2557.9,2557.8,0.8159]
[1748024607061,0.05,2557.9,2557.8,5.27550982]
[1748024607248,0.05,2557.9,2557.8,13.27550982]
[1748024608036,0.05,2557.9,2557.8,8.8159]
[1748024609306,0.05,2557.9,2557.8,13.27550982]
[1748024609890,0.05,2557.9,2557.6,11.723]
[1748024609891,0.05,2558.9,2558.2,0.55]
[1748024610096,0.05,2558.9,2558.1,0.7975]
[1748024610097,3.90817561,2558.8,2558.5,0.7975]
[1748024610270,3.90817561,2558.8,2558.7,8.0]
[1748024610802,3.90817561,2558.8,2558.7,19.719]
[1748024611306,3.95796739,2558.9,2558.7,19.719]
[1748024611517,3.90808191,2558.8,2558.7,19.719]
[1748024611693,3.95799145,2558.9,2558.7,37.727]
[1748024612066,0.05,2558.9,2558.7,37.727]
[1748024612263,0.05,2558.9,2558.8,0.03907404]
[1748024612498,0.05,2558.9,2558.8,0.8225]
[1748024612805,0.05,2558.9,2558.8,13.28058191]
[1748024613163,0.05,2558.9,2558.8,9.3725]
[1748024613365,0.05,2558.9,2558.8,13.28058191]
[1748024614617,0.05,2558.9,2558.8,9.3725]
[1748024614804,0.05,2558.9,2558.8,39.0935]
[1748024614966,0.05,2558.9,2558.8,43.00158191]
[1748024615407,0.05,2559.9,2559.4,1.1302]
[1748024615590,0.05,2559.9,2559.6,8.0]
[1748024615765,0.05,2559.9,2559.8,8.0]
[1748024615981,3.95640259,2559.9,2559.8,8.0]
[1748024616176,3.90655519,2559.8,2559.7,16.872]
[1748024616416,3.90655519,2559.8,2559.7,34.876]
[1748024616921,3.90655519,2559.8,2559.7,35.6915]
[1748024617116,3.95652524,2559.9,2559.7,35.6915]
[1748024617306,0.05,2559.9,2559.7,35.6915]
[1748024617711,3.90655519,2559.8,2559.7,43.6915]
[1748024619036,0.05,2559.9,2559.8,8.0]
[1748024619537,0.05,2559.9,2559.8,12.45655519]
[1748024619736,0.05,2559.9,2559.8,13.26635519]
[1748024620427,0.66666667,2561.7,2560.8,4.45502967]
[1748024620648,3.90393524,2561.6,2560.9,12.66342754]
[1748024620852,3.90393524,2561.6,2560.9,4.66342754]
[1748024621011,3.90393524,2561.6,2561.1,3.90451193]
[1748024621342,0.66666667,2561.7,2561.2,17.996]
[1748024621516,3.90426736,2561.3,2561.2,25.996]
[1748024623443,3.90486546,2561.0,2560.9,19.708]
[1748024623614,0.7662,2561.4,2560.9,8.0]
[1748024623820,3.90449447,2561.2,2561.0,17.991]
[1748024624029,0.66666667,2561.7,2561.1,8.0]
[1748024624243,3.90430461,2561.3,2561.1,8.0]
[1748024624446,3.90419665,2561.4,2561.1,8.0]
[1748024624618,0.66666667,2561.7,2561.2,4.68032958]
[1748024624818,0.66666667,2561.7,2561.2,0.776]
[1748024625122,0.66666667,2561.7,2561.5,8.0]
[1748024625320,0.66666667,2561.7,2561.6,37.674]
[1748024626033,0.66666667,2561.7,2561.6,41.57781011]
[1748024626204,0.66666667,2561.7,2561.6,42.35741011]
[1748024626705,0.05,2561.9,2561.6,39.0036]
[1748024626906,0.05,2561.9,2561.8,13.26730534]
[1748024627105,0.05,2561.9,2561.8,30.12430534]
[1748024627305,0.8266,2563.2,2562.2,3.90287256]
[1748024627541,3.90253549,2562.5,2561.9,12.45324906]
[1748024627743,3.90270244,2562.4,2561.9,12.45324906]
[1748024627903,3.90250986,2562.5,2562.0,3.90319702]
[1748024628107,3.90224165,2562.7,2562.2,3.90277473]
[1748024628307,4.72808893,2563.2,2562.4,8.0]
[1748024628507,3.85267717,2562.4,2562.0,0.55]
[1748024628733,3.90289594,2562.2,2562.1,25.957]
[1748024629122,3.90240515,2562.6,2562.2,8.0]
[1748024629326,3.90236441,2562.6,2562.2,8.0]
[1748024629652,3.90177246,2563.0,2562.3,29.659]
[1748024629959,3.9025822,2562.5,2562.4,17.957]
[1748024630451,3.90156188,2563.1,2561.9,11.90331022]
[1748024630452,3.9019822,2562.8,2561.9,11.90331022]
[1748024630635,3.90259132,2562.4,2562.3,19.702]
[1748024630971,0.05,2562.9,2562.3,19.702]
[1748024631142,0.05,2562.9,2562.4,8.0]
[1748024631469,3.9021188,2562.8,2562.6,8.0]
[1748024631763,3.90213446,2562.7,2562.6,19.7]
[1748024632274,3.9023287,2562.6,2562.1,8.0]
[1748024632436,3.9023287,2562.6,2562.3,8.0]
[1748024632630,3.9019822,2562.8,2562.3,8.0]
[1748024633075,3.90230195,2562.6,2562.3,8.0]
[1748024633281,3.9019822,2562.8,2561.9,3.9033116]
[1748024633488,3.90256972,2562.5,2562.4,19.7]
[1748024633689,3.90256972,2562.5,2562.4,25.954]
[1748024634396,3.90320469,2562.0,2561.9,8.0]
[1748024634712,3.90320062,2562.0,2561.9,17.954]
[1748024634868,3.90320062,2562.0,2561.9,29.654]
[1748024635190,3.90320062,2562.0,2561.9,37.654]
[1748024636009,0.767,2562.6,2562.0,8.0]
[1748024636296,3.90298606,2562.2,2562.0,8.0]
[1748024636594,3.90282672,2562.3,2562.0,8.0]
[1748024636798,0.767,2562.6,2562.0,8.0]
[1748024636799,3.90290956,2562.2,2562.0,8.0]
[1748024636993,3.90280082,2562.3,2562.0,8.0]
[1748024637193,0.767,2562.6,2562.1,29.65]
[1748024637194,3.90243902,2562.5,2562.1,29.65]
[1748024637397,3.90289594,2562.2,2562.1,17.951]
[1748024640095,3.90282938,2562.3,2562.1,25.951]
[1748024640305,3.90289594,2562.2,2562.1,25.951]
[1748024640685,3.90289594,2562.2,2562.1,37.648]
[1748024643815,3.90289594,2562.2,2562.1,25.951]
[1748024644022,3.90289594,2562.2,2562.1,37.648]
[1748024644620,0.767,2562.6,2562.2,8.0]
[1748024644793,0.88,2562.9,2562.2,8.0]
[1748024644992,0.88,2562.9,2562.4,0.8]
[1748024644993,3.90199687,2562.8,2562.4,0.8]
[1748024645209,3.9021428,2562.7,2562.4,8.8]
[1748024645423,3.90228674,2562.6,2562.4,0.8]